bitfinex/quotes_BTCUSD_20240901
["timestamp","ask_amount","ask_price","bid_price","bid_amount"]
[1725200707806,2.49720209,57801.0,57793.0,0.009009]
[1725200708051,2.48434526,57801.0,57793.0,0.009009]
[1725200708279,2.66861446,57801.0,57793.0,0.009009]
[1725200708500,1.755196,57794.0,57793.0,0.009009]
[1725200708730,2.20546131,57794.0,57793.0,0.009009]
[1725200709156,2.22846131,57794.0,57793.0,0.009009]
[1725200709374,2.61046212,57794.0,57793.0,0.009009]
[1725200709849,2.61746212,57794.0,57793.0,0.009009]
[1725200710291,1.559306,57792.0,57771.0,0.0004]
[1725200710514,0.3692,57786.0,57771.0,0.0004]
[1725200710745,0.002,57787.0,57771.0,0.0004]
[1725200710746,1.23461,57776.0,57771.0,0.0004]
[1725200710963,1.704235,57776.0,57771.0,0.0004]
[1725200711411,0.54639685,57776.0,57771.0,0.0004]
[1725200711629,0.20023285,57776.0,57771.0,0.0004]
[1725200711856,0.173082,57776.0,57771.0,0.0004]
[1725200712083,0.22064734,57785.0,57775.0,0.376598]
[1725200712311,0.346133,57782.0,57775.0,0.008998]
[1725200712534,0.173077,57778.0,57775.0,0.008998]
[1725200712750,0.17308,57777.0,57775.0,0.008998]
[1725200712972,0.22064734,57785.0,57775.0,0.008998]
[1725200713202,0.173074,57779.0,57775.0,0.008998]
[1725200713426,0.346137,57781.0,57775.0,0.008998]
[1725200713427,0.173068,57781.0,57775.0,0.008998]
[1725200713646,0.22064734,57785.0,57775.0,0.008998]
[1725200713872,0.31424277,57785.0,57775.0,0.008998]
[1725200714092,0.173074,57779.0,57775.0,0.008998]
[1725200714764,0.173077,57778.0,57775.0,0.008998]
[1725200715002,0.34614,57780.0,57775.0,0.008998]
[1725200715003,0.17307,57780.0,57775.0,0.008998]
[1725200715235,0.31424277,57785.0,57775.0,0.008998]
[1725200715236,0.22064734,57785.0,57775.0,0.008998]
[1725200715468,0.346117,57784.0,57775.0,0.008998]
[1725200715706,0.173082,57776.0,57775.0,0.008998]
[1725200715927,0.346117,57784.0,57775.0,0.008998]
[1725200716171,0.22064734,57785.0,57780.0,0.173069]
[1725200716399,0.22064734,57785.0,57784.0,0.519174]
[1725200716617,0.22064734,57785.0,57784.0,0.3672]
[1725200716826,0.173062,57783.0,57778.0,0.3672]
[1725200717056,0.22364734,57785.0,57776.0,0.1866]
[1725200717286,0.39670334,57785.0,57775.0,0.008998]
[1725200717534,0.173058,57784.0,57778.0,0.173074]
[1725200717753,0.22064734,57785.0,57775.0,0.008998]
[1725200717754,0.29492757,57785.0,57775.0,0.008998]
[1725200717969,0.173074,57779.0,57775.0,0.008998]
[1725200718184,0.17308,57777.0,57775.0,0.008998]
[1725200718411,0.173082,57776.0,57775.0,0.008998]
[1725200719100,0.346149,57779.0,57775.0,0.008998]
[1725200719101,0.173073,57779.0,57775.0,0.008998]
[1725200719329,0.22264734,57785.0,57775.0,0.008998]
[1725200719552,0.173077,57778.0,57775.0,0.008998]
[1725200719986,0.173071,57780.0,57775.0,0.008998]
[1725200720221,0.22264734,57785.0,57775.0,0.008998]
[1725200720222,0.22264734,57785.0,57776.0,0.346164]
[1725200720467,0.22264734,57785.0,57775.0,0.008998]
[1725200720468,0.173064,57782.0,57777.0,0.173077]
[1725200720703,0.22264734,57785.0,57780.0,0.173069]
[1725200720704,0.39370234,57785.0,57780.0,0.173069]
[1725200720946,0.39370234,57785.0,57778.0,0.173073]
[1725200720947,0.22064734,57785.0,57778.0,0.173073]
[1725200721164,0.22064734,57785.0,57775.0,0.008998]
[1725200721165,0.22064734,57785.0,57775.0,0.009998]
[1725200721350,0.173072,57780.0,57775.0,0.009998]
[1725200721595,0.173065,57782.0,57775.0,0.008998]
[1725200721804,0.22064734,57785.0,57778.0,0.173075]
[1725200721805,0.173063,57783.0,57778.0,0.173075]
[1725200722243,0.22064734,57785.0,57776.0,0.346163]
[1725200722456,0.22064734,57785.0,57779.0,0.173072]
[1725200722457,0.173058,57784.0,57779.0,0.173072]
[1725200722666,0.173058,57784.0,57775.0,0.008998]
[1725200722667,0.22064734,57785.0,57784.0,0.519174]
[1725200723097,0.22064734,57785.0,57784.0,1.072974]
[1725200723966,0.22064734,57785.0,57784.0,1.41909]
[1725200724624,0.22064734,57785.0,57784.0,1.765206]
[1725200724847,0.22164734,57785.0,57784.0,1.42109]
[1725200725122,0.001,57785.0,57784.0,1.769206]
[1725200725338,0.001,57785.0,57784.0,1.890206]
[1725200725551,0.001,57785.0,57784.0,2.236322]
[1725200725771,0.001,57785.0,57784.0,2.18703854]
[1725200725989,0.345944,57813.0,57805.0,0.172994]
[1725200726209,0.345954,57812.0,57804.0,0.172995]
[1725200726437,0.345954,57812.0,57804.0,0.172997]
[1725200726438,0.172984,57809.0,57804.0,0.172997]
[1725200726667,0.79777162,57821.0,57800.0,0.346015]
[1725200726898,0.17296,57817.0,57812.0,0.172974]
[1725200727118,0.17296,57817.0,57809.0,0.3672]
[1725200727336,0.17296,57817.0,57811.0,0.172976]
[1725200727525,0.345907,57819.0,57811.0,0.171976]
[1725200727526,0.172963,57816.0,57811.0,0.171976]
[1725200727772,0.172957,57818.0,57812.0,0.172973]
[1725200728218,0.79777162,57821.0,57814.0,0.172967]
[1725200728219,0.43517162,57821.0,57814.0,0.172967]
[1725200728447,0.60811962,57821.0,57815.0,0.172962]
[1725200728684,0.172953,57819.0,57810.0,0.34596]
[1725200728903,0.43517162,57821.0,57810.0,0.34596]
[1725200728904,0.17295,57820.0,57810.0,0.34596]
[1725200729128,0.345865,57826.0,57810.0,0.34596]
[1725200729345,0.172935,57826.0,57820.0,0.172949]
[1725200729570,0.172935,57826.0,57818.0,0.172955]
[1725200729571,0.172938,57824.0,57818.0,0.172955]
[1725200730255,0.172938,57824.0,57819.0,0.172953]
[1725200730471,0.172938,57824.0,57817.0,0.172957]
[1725200730688,0.172938,57824.0,57818.0,0.172954]
[1725200730906,0.172942,57823.0,57818.0,0.171954]
[1725200731338,0.345871,57825.0,57809.0,0.3672]
[1725200731339,0.0518813,57822.0,57809.0,0.3672]
[1725200731524,0.345899,57821.0,57807.0,0.345976]
[1725200731776,0.172963,57816.0,57811.0,0.172976]
[1725200732216,0.172965,57815.0,57809.0,0.172981]
[1725200732438,0.172963,57816.0,57811.0,0.172976]
[1725200732694,0.345899,57821.0,57805.0,0.705989]
[1725200732695,0.345901,57820.0,57810.0,0.345957]
[1725200732914,0.172959,57818.0,57812.0,0.172972]
[1725200733364,0.345924,57817.0,57809.0,0.009]
[1725200733582,0.50540786,57833.0,57809.0,0.009]
[1725200733583,0.345932,57815.0,57809.0,0.009]
[1725200733807,0.172967,57815.0,57809.0,0.181982]
[1725200734041,0.3707,57816.0,57805.0,0.172993]
[1725200734277,0.172978,57811.0,57805.0,0.172994]
[1725200734511,0.172971,57813.0,57809.0,0.014]
[1725200734743,0.346931,57815.0,57809.0,0.014]
[1725200734744,0.172974,57812.0,57809.0,0.014]
[1725200734978,0.172978,57811.0,57809.0,0.014]
[1725200735199,0.345955,57811.0,57800.0,0.36]
[1725200735429,0.345955,57811.0,57799.0,0.346023]
[1725200735430,0.531254,57812.0,57805.0,0.014]
[1725200735655,0.518976,57806.0,57805.0,0.014]
[1725200736106,0.173001,57804.0,57798.0,0.173015]
[1725200736331,0.173001,57804.0,57796.0,0.8359]
[1725200736332,0.345997,57804.0,57796.0,0.8359]
[1725200736593,0.345997,57804.0,57796.0,0.4755]
[1725200736594,0.173009,57801.0,57796.0,0.4755]
[1725200736810,0.34601,57802.0,57796.0,0.4755]
[1725200737045,0.1853,57812.0,57800.0,0.173008]
[1725200737263,0.39783678,57816.0,57796.0,0.4755]
[1725200737264,0.02713678,57816.0,57811.0,0.172976]
[1725200737479,0.02713678,57816.0,57809.0,0.345963]
[1725200737480,0.001,57811.0,57810.0,0.17298]
[1725200737977,0.000818,57815.0,57813.0,0.172971]
[1725200738199,0.000818,57815.0,57813.0,0.172969]
[1725200738433,0.004,57812.0,57811.0,0.172977]
[1725200738645,0.004,57812.0,57811.0,1.22874413]
[1725200739076,0.000818,57815.0,57814.0,0.172968]
[1725200739315,0.000818,57815.0,57814.0,0.86729898]
[1725200739555,0.000818,57815.0,57814.0,1.21323498]
[1725200740465,0.000818,57815.0,57814.0,1.39913498]
[1725200740894,0.000818,57815.0,57814.0,1.76373498]
[1725200741805,0.000818,57815.0,57814.0,2.23267098]
[1725200742022,0.000818,57815.0,57814.0,2.229212]
[1725200742465,0.001818,57815.0,57814.0,2.243212]
[1725200742908,0.000818,57815.0,57814.0,2.229212]
[1725200744059,0.000818,57815.0,57814.0,2.234212]
[1725200744280,0.000818,57815.0,57814.0,2.236212]
[1725200744498,0.001818,57815.0,57814.0,2.248212]
[1725200744927,0.000818,57815.0,57814.0,2.234212]
[1725200745143,0.27157752,57841.0,57825.0,0.345865]
[1725200745362,0.27157752,57841.0,57814.0,0.659836]
[1725200745363,0.27157752,57841.0,57836.0,0.172901]
[1725200745791,0.27157752,57841.0,57837.0,0.172899]
[1725200746018,0.02712129,57850.0,57826.0,0.3636]
[1725200746019,0.02712129,57850.0,57835.0,0.1859]
[1725200746241,0.172876,57845.0,57835.0,0.1859]
[1725200746458,0.345741,57847.0,57836.0,0.345805]
[1725200746701,0.3806,57851.0,57831.0,0.002]
[1725200746915,0.3806,57851.0,57836.0,0.172901]
[1725200747130,0.3806,57851.0,57829.0,0.1879]
[1725200747131,0.172889,57841.0,57834.0,0.172906]
[1725200747345,0.172883,57843.0,57836.0,0.1729]
[1725200747779,0.345723,57850.0,57838.0,0.172894]
[1725200747780,0.17288,57844.0,57838.0,0.172894]
[1725200748016,0.345723,57850.0,57836.0,0.3492618]
[1725200748229,0.345731,57849.0,57840.0,0.17289]
[1725200748441,0.172865,57849.0,57843.0,0.17288]
[1725200748654,0.172865,57849.0,57843.0,0.17188]
[1725200748891,0.3806,57851.0,57846.0,0.172871]
[1725200749108,0.3806,57851.0,57844.0,0.345754]
[1725200749109,0.553459,57851.0,57844.0,0.345754]
[1725200749338,0.3806,57851.0,57844.0,0.345754]
[1725200749547,0.173663,57855.0,57849.0,0.172863]
[1725200749762,0.17630646,57854.0,57849.0,0.172863]
[1725200749969,0.172851,57853.0,57849.0,0.172863]
[1725200750152,0.00345746,57852.0,57847.0,0.172868]
[1725200750849,0.17631246,57852.0,57847.0,0.172868]
[1725200751064,0.172855,57852.0,57847.0,0.172868]
[1725200751508,0.000817,57855.0,57850.0,0.17286]
[1725200751726,0.173665,57855.0,57850.0,0.17286]
[1725200751911,0.000817,57855.0,57848.0,0.345729]
[1725200752176,0.000817,57855.0,57840.0,0.710377]
[1725200752177,0.172853,57853.0,57847.0,0.172868]
[1725200752573,0.345703,57854.0,57847.0,0.007]
[1725200752829,0.00345746,57853.0,57847.0,0.007]
[1725200753045,0.172861,57850.0,57844.0,0.172876]
[1725200753274,0.172861,57850.0,57842.0,0.345766]
[1725200753275,0.172854,57853.0,57847.0,0.172869]
[1725200753483,0.345703,57854.0,57847.0,0.172869]
[1725200753666,0.00345746,57853.0,57847.0,0.172867]
[1725200753902,0.172859,57851.0,57846.0,0.172871]
[1725200754583,0.172855,57852.0,57848.0,0.008]
[1725200754798,0.000817,57855.0,57848.0,0.008]
[1725200754799,0.000817,57855.0,57854.0,0.172848]
[1725200755022,0.000817,57855.0,57849.0,0.345726]
[1725200755252,0.000817,57855.0,57854.0,0.172848]
[1725200755687,0.000817,57855.0,57850.0,0.345718]
[1725200755688,0.000817,57855.0,57852.0,0.172852]
[1725200755910,0.000817,57855.0,57854.0,0.172848]
[1725200756133,0.000817,57855.0,57854.0,1.220642]
[1725200756348,0.000817,57855.0,57854.0,1.422142]
[1725200757414,0.000817,57855.0,57854.0,1.767839]
[1725200757623,0.000817,57855.0,57854.0,1.760839]
[1725200757834,0.000817,57855.0,57854.0,1.758839]
[1725200759472,0.000817,57855.0,57854.0,1.227642]
[1725200759909,0.000817,57855.0,57854.0,1.573339]
[1725200760778,0.000817,57855.0,57854.0,0.532545]
[1725200761020,0.000817,57855.0,57853.0,0.17285]
[1725200761252,0.000817,57855.0,57845.0,0.4494]
[1725200761253,0.000817,57855.0,57854.0,0.518545]
[1725200761483,0.000817,57855.0,57854.0,0.532545]
[1725200761962,0.000817,57855.0,57854.0,0.014]
[1725200762230,0.000817,57855.0,57852.0,0.172854]
[1725200762453,0.000817,57855.0,57853.0,0.18685]
[1725200762671,0.000817,57855.0,57853.0,0.014]
[1725200762876,0.000817,57855.0,57852.0,0.172854]
[1725200763098,0.000817,57855.0,57853.0,0.172851]
[1725200763318,0.000817,57855.0,57849.0,0.345727]
[1725200763564,0.000817,57855.0,57853.0,0.172851]
[1725200763790,0.000817,57855.0,57849.0,0.345727]
[1725200764024,0.000817,57855.0,57852.0,0.172853]
[1725200764570,0.000817,57855.0,57854.0,0.014]
[1725200765017,0.000817,57855.0,57834.0,0.35986137]
[1725200765018,0.000817,57855.0,57838.0,1.14059]
[1725200765236,0.345699,57854.0,57841.0,0.347771]
[1725200765455,0.000817,57855.0,57852.0,0.014]
[1725200765456,0.172853,57853.0,57852.0,0.014]
[1725200765692,0.162853,57853.0,57852.0,0.014]
[1725200765928,0.345698,57854.0,57845.0,0.345749]
[1725200766152,0.172851,57854.0,57847.0,0.172869]
[1725200766591,0.000817,57855.0,57850.0,0.17286]
[1725200766811,0.172849,57854.0,57848.0,0.172865]
[1725200767025,0.000817,57855.0,57849.0,0.172862]
[1725200767265,0.173664,57855.0,57849.0,0.172862]
[1725200767489,0.00345746,57854.0,57845.0,0.014]
[1725200767713,0.172865,57849.0,57845.0,0.014]
[1725200767936,0.172865,57849.0,57837.0,0.522298]
[1725200767937,0.172884,57843.0,57837.0,0.522298]
[1725200768177,0.1911,57850.0,57835.0,0.4755]
[1725200768178,0.363962,57850.0,57835.0,0.4755]
[1725200768407,0.363962,57850.0,57843.0,0.172879]
[1725200768631,0.191917,57855.0,57850.0,0.17286]
[1725200768866,0.172855,57852.0,57846.0,0.17287]
[1725200769093,0.191917,57855.0,57850.0,0.17286]
[1725200769339,0.364764,57855.0,57848.0,0.172866]
[1725200769573,0.172849,57854.0,57848.0,0.172866]
[1725200771035,0.172849,57854.0,57836.0,0.345803]
[1725200771036,0.00345746,57854.0,57841.0,0.34577]
[1725200771271,0.00345746,57854.0,57841.0,0.172885]
[1725200771541,0.00345746,57854.0,57836.0,0.345803]
[1725200771542,0.172874,57846.0,57839.0,0.172893]
[1725200771753,0.172885,57842.0,57835.0,0.4755]
[1725200771966,0.3756,57845.0,57838.0,0.172894]
[1725200772179,0.3756,57845.0,57836.0,0.345804]
[1725200772180,0.172883,57843.0,57836.0,0.172901]
[1725200772428,0.00345746,57842.0,57830.0,0.345838]
[1725200772648,0.00345746,57842.0,57826.0,0.0008998]
[1725200772649,0.172916,57832.0,57826.0,0.0008998]
[1725200772869,0.345805,57836.0,57826.0,0.0008998]
[1725200772870,0.345819,57834.0,57826.0,0.0008998]
[1725200773082,0.172922,57830.0,57826.0,0.0008998]
[1725200773306,0.172925,57829.0,57826.0,0.0008998]
[1725200773523,0.345835,57831.0,57826.0,0.0008998]
[1725200773741,0.3756,57834.0,57826.0,0.0008998]
[1725200773742,0.172921,57830.0,57826.0,0.0008998]
[1725200773952,0.345829,57832.0,57826.0,0.0008998]
[1725200774164,0.72142,57834.0,57826.0,0.0008998]
[1725200774400,0.345823,57833.0,57826.0,0.0008998]
[1725200774628,0.3756,57834.0,57826.0,0.0008998]
[1725200774629,0.345829,57832.0,57826.0,0.0008998]
[1725200774843,0.172925,57829.0,57826.0,0.0008998]
[1725200775278,0.172918,57831.0,57826.0,0.0008998]
[1725200775495,0.172904,57836.0,57831.0,0.172916]
[1725200775736,0.172909,57834.0,57828.0,0.0008998]
[1725200775957,0.718089,57839.0,57828.0,0.0008998]
[1725200775958,0.172906,57835.0,57828.0,0.0008998]
[1725200776209,0.172906,57835.0,57829.0,0.172923]
[1725200776423,0.00345746,57838.0,57829.0,0.172923]
[1725200776647,0.00345746,57838.0,57828.0,0.0008998]
[1725200776648,0.09392211,57838.0,57828.0,0.0008998]
[1725200776870,1.433017,57829.0,57828.0,0.0008998]
[1725200777109,1.778864,57829.0,57828.0,0.0008998]
[1725200777819,1.433017,57829.0,57828.0,0.0008998]
[1725200778045,1.778864,57829.0,57828.0,0.0008998]
[1725200778288,1.79407849,57829.0,57828.0,0.0008998]
[1725200778515,2.06263013,57829.0,57828.0,0.0008998]
[1725200778959,2.06763013,57829.0,57828.0,0.0008998]
[1725200779174,2.08992807,57829.0,57828.0,0.0008998]
[1725200779388,2.41347713,57829.0,57828.0,0.0008998]
[1725200779629,2.41347713,57829.0,57828.0,0.0108998]
[1725200779852,2.06763013,57829.0,57828.0,0.0108998]
[1725200780088,2.06563013,57829.0,57828.0,0.0108998]
[1725200780315,1.89207849,57829.0,57828.0,0.0108998]
[1725200780530,1.878864,57829.0,57828.0,0.0108998]
[1725200780965,1.878364,57829.0,57828.0,0.0108998]
[1725200781201,1.878364,57829.0,57826.0,0.0008998]
[1725200781202,0.869647,57827.0,57826.0,0.0008998]
[1725200781427,1.448047,57827.0,57826.0,0.0008998]
[1725200781656,1.93011907,57827.0,57826.0,0.0008998]
[1725200781896,2.27597807,57827.0,57826.0,0.0008998]
[1725200782365,2.24297807,57827.0,57826.0,0.0078998]
[1725200782645,1.878906,57827.0,57826.0,0.0078998]
[1725200783754,2.04745764,57827.0,57826.0,0.0078998]
[1725200784262,1.878906,57827.0,57826.0,0.0078998]
[1725200785688,1.187188,57827.0,57826.0,0.0078998]
[1725200785911,0.741329,57827.0,57826.0,0.0078998]
[1725200786370,0.172929,57827.0,57826.0,0.0078998]
[1725200786594,0.17638646,57827.0,57826.0,0.0078998]
[1725200786824,0.64628291,57827.0,57826.0,0.0078998]
[1725200787307,0.52224546,57827.0,57826.0,0.0078998]
[1725200787789,0.3723,57831.0,57826.0,0.0078998]
[1725200787790,0.172921,57830.0,57826.0,0.0078998]
[1725200788062,0.3723,57831.0,57826.0,0.0078998]
[1725200788063,0.3723,57831.0,57827.0,0.172928]
[1725200788336,0.345776,57841.0,57827.0,0.172928]
[1725200788337,0.5684,57847.0,57828.0,0.0034582]
[1725200788565,0.5684,57847.0,57827.0,0.3722]
[1725200788566,0.000817,57850.0,57829.0,0.3952]
[1725200788782,0.172868,57848.0,57839.0,0.345784]
[1725200789017,0.00427446,57850.0,57840.0,0.0034574]
[1725200789018,0.000817,57850.0,57840.0,0.0034574]
[1725200789250,0.000817,57850.0,57833.0,0.001]
[1725200789251,0.00427446,57850.0,57833.0,0.001]
[1725200789475,0.00427446,57850.0,57829.0,0.3952]
[1725200789476,0.00427446,57850.0,57846.0,0.172872]
[1725200790360,0.000817,57850.0,57848.0,0.172865]
[1725200790598,0.000817,57850.0,57847.0,0.172868]
[1725200790820,0.000817,57850.0,57849.0,0.172863]
[1725200791043,0.000817,57850.0,57849.0,0.51859]
[1725200791286,0.000817,57850.0,57848.0,0.172865]
[1725200791551,0.000817,57850.0,57843.0,0.345761]
[1725200791776,0.173678,57850.0,57842.0,0.3722]
[1725200791988,0.000817,57850.0,57846.0,0.002]
[1725200792202,0.000817,57850.0,57847.0,0.172868]
[1725200792420,0.000817,57850.0,57842.0,0.3722]
[1725200792421,0.000817,57850.0,57845.0,0.345746]
[1725200792640,0.000817,57850.0,57847.0,0.172869]
[1725200792874,0.001817,57850.0,57848.0,0.009]
[1725200793095,0.001817,57850.0,57848.0,0.181865]
[1725200793329,0.001817,57850.0,57849.0,0.172863]
[1725200793330,0.000817,57850.0,57849.0,0.172863]
[1725200793572,0.001817,57850.0,57849.0,0.172863]
[1725200793835,0.001817,57850.0,57847.0,0.009]
[1725200794305,0.17468,57850.0,57847.0,0.009]
[1725200794754,0.172866,57848.0,57847.0,0.009]
[1725200794980,0.172866,57848.0,57841.0,0.172886]
[1725200794981,0.172869,57847.0,57841.0,0.172886]
[1725200795477,0.172872,57846.0,57841.0,0.172886]
[1725200795694,0.172872,57846.0,57837.0,0.4755]
[1725200795695,0.172888,57841.0,57837.0,0.4755]
[1725200795915,0.172883,57843.0,57838.0,0.172896]
[1725200796374,0.17634146,57842.0,57841.0,0.012]
[1725200796618,0.86787946,57842.0,57841.0,0.012]
[1725200796851,0.172903,57836.0,57830.0,0.172919]
[1725200797069,0.172909,57834.0,57829.0,0.172921]
[1725200797284,0.172909,57834.0,57830.0,0.17292]
[1725200797546,0.17635846,57837.0,57831.0,0.172917]
[1725200797997,0.17635846,57837.0,57829.0,0.345846]
[1725200797998,0.00345746,57837.0,57829.0,0.172921]
[1725200798213,0.172901,57837.0,57829.0,0.345846]
[1725200798440,0.345782,57840.0,57833.0,0.17291]
[1725200798894,0.172897,57838.0,57833.0,0.17291]
[1725200799395,0.00345746,57837.0,57826.0,0.3467638]
[1725200799625,0.518761,57830.0,57829.0,0.014]
[1725200799857,0.864602,57830.0,57829.0,0.014]
[1725200800076,0.51877,57829.0,57828.0,0.0008998]
[1725200800512,0.172923,57829.0,57828.0,0.0008998]
[1725200800724,0.17638046,57829.0,57828.0,0.0008998]
[1725200801075,0.172919,57831.0,57828.0,0.0008998]
[1725200801285,0.5541,57836.0,57828.0,0.0008998]
[1725200801286,0.00345746,57830.0,57828.0,0.0008998]
[1725200801496,0.172923,57829.0,57828.0,0.0008998]
[1725200802765,0.26683254,57831.0,57828.0,0.0148998]
[1725200802971,0.172923,57829.0,57828.0,0.0148998]
[1725200803228,0.172923,57829.0,57828.0,0.0008998]
[1725200803452,0.001,57829.0,57828.0,0.0148998]
[1725200803858,0.001,57829.0,57828.0,0.1878258]
[1725200804738,0.001,57829.0,57828.0,1.2605318]
[1725200806227,0.173923,57829.0,57828.0,0.0148998]
[1725200806425,0.51977,57829.0,57828.0,0.0148998]
[1725200806666,0.88847,57829.0,57828.0,0.0148998]
[1725200806873,1.07387,57829.0,57828.0,0.0148998]
[1725200807126,0.001,57829.0,57828.0,0.3607528]
[1725200807341,0.001,57829.0,57828.0,0.5336788]
[1725200807547,0.001,57829.0,57828.0,0.0148998]
[1725200809691,0.001,57829.0,57828.0,0.1878258]
[1725200809897,0.001,57829.0,57828.0,0.0148998]
[1725200810511,0.001,57829.0,57828.0,0.1878258]
[1725200811735,0.001,57829.0,57828.0,0.0148998]
[1725200811975,0.001,57829.0,57828.0,0.1878258]
[1725200812210,0.001,57829.0,57828.0,0.0148998]
[1725200813129,0.537162,57829.0,57828.0,0.0148998]
[1725200813345,0.51977,57829.0,57828.0,0.0148998]
[1725200814651,0.173923,57829.0,57828.0,0.0148998]
[1725200815155,0.51977,57829.0,57828.0,0.0148998]
[1725200815404,0.173923,57829.0,57828.0,0.0148998]
[1725200815623,0.001,57829.0,57828.0,0.1878258]
[1725200815832,0.001,57829.0,57828.0,1.7998848]
[1725200816696,0.001,57829.0,57828.0,2.1507378]
[1725200816907,0.001,57829.0,57828.0,2.1757378]
[1725200817122,0.50540786,57851.0,57840.0,0.3813]
[1725200817335,0.5548,57858.0,57842.0,0.345766]
[1725200817546,0.5548,57858.0,57840.0,0.3813]
[1725200817547,0.727638,57858.0,57852.0,0.172853]
[1725200817761,0.727638,57858.0,57843.0,0.00345707]
[1725200817762,0.5548,57858.0,57851.0,0.345714]
[1725200817998,0.1924,57858.0,57854.0,0.172848]
[1725200818893,0.1924,57858.0,57854.0,0.171848]
[1725200819334,0.1924,57858.0,57854.0,0.517545]
[1725200819547,0.1924,57858.0,57854.0,0.004]
[1725200819755,0.1924,57858.0,57854.0,0.176848]
[1725200819971,0.1924,57858.0,57854.0,0.004]
[1725200820181,0.365237,57858.0,57854.0,0.004]
[1725200820391,0.365237,57858.0,57854.0,0.176848]
[1725200820392,0.1924,57858.0,57854.0,0.176848]
[1725200821275,0.363217,57862.0,57854.0,0.522545]
[1725200821483,0.172838,57858.0,57854.0,0.004]
[1725200821696,0.17284,57857.0,57854.0,0.004]
[1725200822610,0.345656,57861.0,57854.0,0.004]
[1725200822611,0.345678,57858.0,57854.0,0.004]
[1725200823038,0.363217,57862.0,57854.0,0.176848]
[1725200823252,0.363217,57862.0,57854.0,0.177848]
[1725200823253,0.172832,57860.0,57854.0,0.177848]
[1725200823664,0.363217,57862.0,57854.0,0.523545]
[1725200823895,0.172829,57861.0,57854.0,0.523545]
[1725200824315,0.172831,57860.0,57854.0,0.177848]
[1725200824760,0.172835,57859.0,57854.0,0.177848]
[1725200824974,0.70887,57862.0,57854.0,0.005]
[1725200824975,0.173662,57855.0,57854.0,0.005]
[1725200825193,0.1910282,57855.0,57854.0,0.005]
[1725200825405,1.2448102,57855.0,57854.0,0.005]
[1725200825612,0.881753,57855.0,57854.0,0.005]
[1725200826501,1.419844,57855.0,57854.0,0.005]
[1725200826720,1.765535,57855.0,57854.0,0.005]
[1725200827184,2.211226,57855.0,57854.0,0.005]
[1725200827619,0.5548,57837.0,57828.0,0.0008998]
[1725200827861,0.172918,57831.0,57828.0,0.0008998]
[1725200828072,0.172916,57832.0,57828.0,0.0008998]
[1725200828293,0.172918,57831.0,57828.0,0.0008998]
[1725200828509,0.5548,57837.0,57828.0,0.0008998]
[1725200828726,0.51877,57829.0,57828.0,0.0008998]
[1725200829196,0.172923,57829.0,57828.0,0.0008998]
[1725200829615,0.172923,57829.0,57828.0,0.0148998]
[1725200829848,0.51877,57829.0,57828.0,0.0148998]
[1725200830272,0.51877,57829.0,57828.0,0.0288998]
[1725200830710,0.51877,57829.0,57828.0,0.0428998]
[1725200831136,0.51877,57829.0,57828.0,0.0288998]
[1725200831355,0.51877,57829.0,57828.0,0.0428998]
[1725200831794,0.9510767,57829.0,57828.0,0.0428998]
[1725200832229,1.775464,57829.0,57828.0,0.0428998]
[1725200832470,1.429617,57829.0,57828.0,0.0428998]
[1725200832680,1.08377,57829.0,57828.0,0.0428998]
[1725200832896,1.08377,57829.0,57828.0,0.0148998]
[1725200833309,1.08377,57829.0,57828.0,0.0288998]
[1725200833519,1.08377,57829.0,57828.0,0.0148998]
[1725200833984,1.08377,57829.0,57828.0,0.0288998]
[1725200834451,1.08377,57829.0,57828.0,0.0148998]
[1725200834875,1.08377,57829.0,57828.0,0.0288998]
[1725200835079,0.172923,57829.0,57828.0,0.0288998]
[1725200835521,0.1834,57834.0,57828.0,0.0288998]
[1725200835778,0.172896,57838.0,57832.0,0.345827]
[1725200835993,0.172893,57839.0,57834.0,0.172907]
[1725200836209,0.172892,57840.0,57835.0,0.172904]
[1725200836438,0.1,57848.0,57836.0,0.3458]
[1725200836439,0.345743,57847.0,57836.0,0.3458]
[1725200836664,0.172884,57843.0,57838.0,0.172895]
[1725200838462,0.345759,57844.0,57838.0,0.004]
[1725200838724,0.87418,57839.0,57838.0,0.004]
[1725200839188,1.219967,57839.0,57838.0,0.004]
[1725200839419,1.219967,57839.0,57838.0,0.008]
[1725200839651,1.219967,57839.0,57838.0,0.004]
[1725200839859,1.219967,57839.0,57838.0,0.008]
[1725200840087,1.403367,57839.0,57838.0,0.016]
[1725200840519,1.403367,57839.0,57838.0,0.012]
[1725200840731,1.403367,57839.0,57838.0,0.021]
[1725200840732,1.91770564,57839.0,57838.0,0.021]
[1725200840940,1.749154,57839.0,57838.0,0.021]
[1725200842063,1.77627676,57839.0,57838.0,0.021]
[1725200843009,2.12206376,57839.0,57838.0,0.021]
[1725200843908,2.22206376,57839.0,57838.0,0.021]
[1725200844149,2.3906154,57839.0,57838.0,0.021]
[1725200844365,2.36349264,57839.0,57838.0,0.021]
[1725200844830,2.37669353,57839.0,57838.0,0.021]
[1725200845286,2.38169353,57839.0,57838.0,0.021]
[1725200845932,1.86235489,57839.0,57838.0,0.021]
[1725200846116,1.849154,57839.0,57838.0,0.021]
[1725200846586,2.20813798,57839.0,57838.0,0.021]
[1725200847636,2.23526282,57839.0,57838.0,0.021]
[1725200848929,2.20813798,57839.0,57838.0,0.021]
[1725200850310,1.849154,57839.0,57838.0,0.021]
[1725200850745,1.87627797,57839.0,57838.0,0.021]
[1725200850956,1.88947584,57839.0,57838.0,0.021]
[1725200851999,1.86235187,57839.0,57838.0,0.021]
[1725200855183,1.849154,57839.0,57838.0,0.021]